fUSD/lending_fUSD_20251017
["ID","MTS","AMOUNT","RATE_DAILY","PERIOD"]
[391658146,1760721046599,-536.34641761,0.00029999,2]
[391658147,1760721046607,-500.0,0.00029999,2]
[391658148,1760721046617,-253.64599681,0.00029999,2]
[391658149,1760721046626,-500.0,0.00029999,2]
[391658150,1760721046635,-500.0,0.00029999,2]
[391658151,1760721046644,-600.32338372,0.00029999,2]
[391658152,1760721046654,-1098.54824715,0.0003,2]
[391658153,1760721046668,-164.0,0.0003,2]
[391658154,1760721046678,-327.23173139,0.00030065,2]
[391658155,1760721046687,-4051.0,0.00030119,2]
[391658156,1760721046696,-1000.0,0.00030136,120]
[391658157,1760721046706,-425.92005611,0.00030136,3]
[391658159,1760721046729,-655.8124673,0.0003,5]
[391658169,1760721063010,200.0,0.00031233,120]
[391658175,1760721066451,500.0,0.00026143,120]
[391658195,1760721145326,200.0,0.00031233,30]
[391658196,1760721145777,300.0,0.00031233,30]
[391658231,1760721247850,5000.0,0.00031233,120]
[391658235,1760721303092,500.0,0.00026143,120]
[391658236,1760721303219,500.0,0.00024221,120]
[391658237,1760721303340,500.0,0.00024794,120]
[391658238,1760721303439,500.0,0.00024794,120]
[391658247,1760721363863,200.0,0.00031233,120]
[391658251,1760721443336,200.0,0.00031225,30]
[391658252,1760721443954,300.0,0.00031225,30]
[391658262,1760721570331,2010.0684129,0.00027397,120]
[391658268,1760721661388,200.0,0.00031225,120]
[391658274,1760721743040,267.0,0.00031227,30]
[391658275,1760721764326,150.0,0.00031227,30]
[391658290,1760721961670,200.0,0.00031227,120]
[391658298,1760722070814,10000.0,0.00031236,30]
[391658301,1760722082562,3000000.0,0.00031236,30]
[391658302,1760722090840,1200000.0,0.00031236,30]
[391658342,1760722231478,-3683.14437929,0.0001439,2]
[391658344,1760722231489,-300.0,0.00014399,2]
[391658346,1760722231498,-1200.0,0.00014399,2]
[391658348,1760722231508,-519.55262071,0.000144,5]
[391658350,1760722231520,-11269.98725556,0.000144,5]
[391658352,1760722231532,-3110.46012373,0.000144,5]
[391658354,1760722231541,-24640.87002212,0.000145,5]
[391658356,1760722231553,-5159.12997788,0.000145,5]
[391658358,1760722231562,-150.0,0.00014599,2]
[391658359,1760722231571,-44800.0,0.000146,5]
[391658360,1760722231580,-15949.21766849,0.000147,5]
[391658361,1760722231610,-1143.2970138,0.000147,5]
[391658362,1760722231622,-6001.99999999,0.000147,5]
[391658363,1760722231634,-270.32146999,0.000147,5]
[391658364,1760722231645,-432.8648718,0.000147,5]
[391658365,1760722231663,-3136.83297878,0.000147,5]
[391658366,1760722231687,-592.16308684,0.000147,5]
[391658367,1760722231698,-651.48729921,0.000147,5]
[391658368,1760722231714,-31521.8156111,0.000147,5]
[391658369,1760722231723,-74600.0,0.000148,5]
[391658370,1760722231733,-201.61524054,0.000149,2]
[391658371,1760722231742,-164.26956069,0.000149,2]
[391658372,1760722231752,-181.49350884,0.000149,2]
[391658373,1760722231762,-14900.0,0.000149,5]
[391658374,1760722231771,-688.50412106,0.000149,2]
[391658375,1760722231781,-177.62406772,0.000149,2]
[391658376,1760722231791,-500.0,0.00014973,2]
[391658377,1760722231801,-555.55593625,0.00014973,2]
[391658378,1760722231811,-500.0,0.00014973,2]
[391658380,1760722231820,-500.0,0.00014973,2]
[391658382,1760722231829,-500.0,0.00014973,2]
[391658384,1760722231839,-188.9099331,0.00014973,2]
[391658386,1760722231848,-500.0,0.00014973,2]
[391658388,1760722231858,-649.17583818,0.00014973,2]
[391658390,1760722231868,-502.68204026,0.00014973,2]
[391658392,1760722231877,-175.91949468,0.0001499,2]
[391658394,1760722231886,-373.80082037,0.00014999,2]
[391658396,1760722231895,-161.92522945,0.00014999,2]
[391658398,1760722231904,-500.0,0.00014999,2]
[391658400,1760722231914,-500.0,0.00014999,2]
[391658401,1760722231923,-500.0,0.00014999,2]
[391658408,1760722231978,-500.0,0.00014999,2]
[391658410,1760722231988,-500.0,0.00014999,2]
[391658412,1760722231997,-351.45938267,0.00014999,2]
[391658413,1760722232007,-500.0,0.00014999,2]
[391658415,1760722232016,-500.0,0.00014999,2]
[391658416,1760722232026,-500.0,0.00014999,2]
[391658417,1760722232035,-500.0,0.00014999,2]
[391658418,1760722232045,-500.0,0.00014999,2]
[391658419,1760722232054,-500.0,0.00014999,2]
[391658420,1760722232064,-500.0,0.00014999,2]
[391658421,1760722232078,-500.0,0.00014999,2]
[391658422,1760722232088,-500.0,0.00014999,2]
[391658423,1760722232097,-500.0,0.00014999,2]
[391658424,1760722232107,-500.0,0.00014999,2]
[391658425,1760722232116,-500.0,0.00014999,2]
[391658426,1760722232126,-500.0,0.00014999,2]
[391658427,1760722232135,-500.0,0.00014999,2]
[391658428,1760722232144,-500.0,0.00014999,2]
[391658429,1760722232154,-119491.0676647,0.00015,2]
[391658430,1760722232163,-184207.81573504,0.00015,2]
[391658431,1760722235161,696.56,9.327e-05,2]
[391658432,1760722235585,696.56,9.818e-05,2]
[391658433,1760722235647,696.56,0.00010308,2]
[391658434,1760722235791,696.56,0.00010799,2]
[391658435,1760722235980,696.56,0.0001129,2]
[391658436,1760722236404,696.56,0.00011781,2]
[391658437,1760722236654,696.56,0.00012272,2]
[391658438,1760722236861,696.56,0.00012763,2]
[391658448,1760722237453,-696.56,0.00013254,2]
[391658449,1760722237464,-696.56,0.00013745,2]
[391658450,1760722237474,-696.56,0.00014235,2]
[391658451,1760722237483,-325.07951936,0.00014999,2]
[391658452,1760722237493,-500.0,0.00014999,2]
[391658453,1760722237503,-500.0,0.00014999,2]
[391658454,1760722237513,-483.06178154,0.00014999,2]
[391658455,1760722237523,-185.99211055,0.00014999,2]
[391658456,1760722237533,-500.0,0.00014999,2]
[391658457,1760722237542,-156.77301908,0.00014999,2]
[391658458,1760722237551,-500.0,0.00014999,2]
[391658459,1760722237561,-294.61724721,0.00014999,2]
[391658460,1760722237571,-5635159.83529926,0.00015,2]
[391658461,1760722237580,-2024.35024618,0.00015,2]
[391658462,1760722237590,-2021569.63831308,0.00015,2]
[391658463,1760722237599,-151.0,0.00015205,2]
[391658464,1760722237610,-151.0,0.00015274,2]
[391658465,1760722237619,-151.0,0.00015343,2]
[391658466,1760722237629,-151.0,0.00015418,2]
[391658467,1760722237639,-666.0,0.00015486,3]
[391658468,1760722237649,-500.0,0.00015521,2]
[391658469,1760722237663,-192.58382691,0.00015521,2]
[391658471,1760722237673,-500.0,0.00015521,2]
[391658472,1760722237682,-255.0,0.00015723,2]
[391658474,1760722237692,-420.0,0.00015769,2]
[391658476,1760722237701,-195.0,0.00015829,2]
[391658478,1760722237710,-300.0,0.00015829,2]
[391658480,1760722237719,-2176.74442359,0.00015829,2]
[391658482,1760722237728,-1680.0,0.00015839,2]
[391658484,1760722237737,-2617.85385112,0.00015929,2]
[391658486,1760722237747,-500.0,0.00016438,2]
[391658488,1760722237758,-433.0,0.00016935,2]
[391658490,1760722237768,-4500.0,0.00017,7]
[391658492,1760722237777,-1223.36449202,0.00017191,2]
[391658494,1760722237786,-587.0,0.00017268,2]
[391658496,1760722237795,-2351.0,0.00017423,2]
[391658498,1760722237805,-1000.53672237,0.00017534,2]
[391658500,1760722237814,-736.0,0.00018234,2]
[391658502,1760722237823,-151.29,0.000188,2]
[391658504,1760722237832,-151.29,0.000188,2]
[391658506,1760722237843,-151.29,0.000188,2]
[391658508,1760722237852,-823.0,0.00018911,2]
[391658511,1760722237866,-300.0,0.00018999,2]
[391658513,1760722237875,-51649.36043081,0.00019,2]
[391658515,1760722237884,-3292.0,0.00019165,2]
[391658517,1760722237894,-200.0,0.00019178,2]
[391658519,1760722237903,-475.49624517,0.00019199,2]
[391658521,1760722237912,-204.22491195,0.000192,2]
[391658523,1760722237922,-174.95194413,0.000192,2]
[391658525,1760722237931,-288.42617776,0.000192,2]
[391658527,1760722237941,-198.09186119,0.000192,2]
[391658529,1760722237950,-163.51521853,0.000192,2]
[391658531,1760722237959,-164.70484905,0.000192,2]
[391658533,1760722237969,-6026.81684662,0.000192,2]
[391658535,1760722237978,-204.22491195,0.000194,2]
[391658537,1760722237987,-288.42617776,0.000194,2]
[391658539,1760722237997,-163.51521853,0.000194,2]
[391658541,1760722238007,-164.70484905,0.000194,2]
[391658543,1760722238016,-6026.81684662,0.000194,2]
[391658545,1760722238025,-204.22491195,0.000196,2]
[391658547,1760722238036,-288.42617776,0.000196,2]
[391658549,1760722238045,-163.51521853,0.000196,2]
[391658551,1760722238055,-164.70484905,0.000196,2]
[391658553,1760722238064,-6026.81684662,0.000196,2]
[391658555,1760722238074,-1252.0,0.00019636,2]
[391658557,1760722238083,-162.89,0.0001971,2]
[391658559,1760722238092,-400.0,0.00019726,2]
[391658561,1760722238102,-288.42617776,0.000198,2]
[391658562,1760722238112,-163.51521853,0.000198,2]
[391658565,1760722238122,-6026.81684662,0.000198,2]
[391658567,1760722238134,-288.42617776,0.0002,2]
[391658569,1760722238144,-163.51521853,0.0002,2]
[391658571,1760722238153,-6026.81684662,0.0002,2]
[391658573,1760722238162,-8300.0,0.0002,4]
[391658575,1760722238172,-1000.0,0.0002,4]
[391658577,1760722238182,-6026.81684662,0.000202,2]
[391658579,1760722238192,-600.0,0.00020274,2]
[391658581,1760722238202,-1018.29,0.00020297,2]
[391658583,1760722238211,-6026.81684662,0.000204,2]
[391658585,1760722238221,-164.26956069,0.00020498,2]
[391658588,1760722238234,-6026.81684662,0.000206,2]
[391658590,1760722238244,-737.0,0.00020709,2]
[391658592,1760722238255,-6026.81684662,0.000208,2]
[391658594,1760722238267,-800.0,0.00020822,2]
[391658596,1760722238277,-1000.0,0.00020931,2]
[391658598,1760722238287,-6026.81684662,0.00021,2]
[391658600,1760722238296,-2151.0,0.00021082,2]
[391658602,1760722238307,-2129.0,0.00021154,2]
[391658604,1760722238316,-1000.0,0.0002137,2]
[391658606,1760722238324,-500.0,0.00021726,2]
[391658608,1760722238335,-500.0,0.00021917,2]
[391658610,1760722238344,-500.0,0.00021917,2]
[391658612,1760722238353,-500.0,0.00021917,2]
[391658614,1760722238362,-500.0,0.00021917,2]
[391658616,1760722238371,-500.0,0.00021917,2]
[391658617,1760722238380,-500.0,0.00021917,2]
[391658620,1760722238390,-500.0,0.00021917,2]
[391658622,1760722238399,-500.0,0.00021917,2]
[391658624,1760722238408,-500.0,0.00021917,2]
[391658626,1760722238417,-500.0,0.00021917,2]
[391658627,1760722238427,-500.0,0.00021917,2]
[391658630,1760722238438,-500.0,0.00021917,2]
[391658632,1760722238448,-500.0,0.00021917,2]
[391658634,1760722238458,-500.0,0.00021917,2]
[391658636,1760722238467,-500.0,0.00021917,2]
[391658638,1760722238476,-500.0,0.00021917,2]
[391658640,1760722238485,-500.0,0.00021917,2]
[391658641,1760722238494,-303.04,0.00021917,2]
[391658644,1760722238505,-1200.0,0.00021918,2]
[391658645,1760722238515,-15192.42813762,0.00022,4]
[391658647,1760722238528,-151.0,0.00022424,2]
[391658649,1760722238540,-500.0,0.00022424,2]
[391658651,1760722238551,-300.0,0.00022437,2]
[391658653,1760722238560,-398.642095,0.00022438,2]
[391658654,1760722238570,-200.0,0.00022466,2]
[391658655,1760722238579,-300.0,0.00022476,2]
[391658656,1760722238589,-87226.49,0.00022477,2]
[391658657,1760722238598,-5000.0,0.00022477,2]
[391658658,1760722238607,-5001.71,0.000225,7]
[391658659,1760722238616,-197.0,0.00022789,2]
[391658660,1760722238626,-150.0,0.00023264,2]
[391658661,1760722238646,-228.87,0.00023264,2]
[391658663,1760722238656,-1000.0,0.00023345,7]
[391658665,1760722238666,-1000.0,0.00023345,7]
[391658667,1760722238675,-625.813,0.00023345,7]
[391658669,1760722238684,-1000.0,0.00023345,7]
[391658671,1760722238694,-1000.0,0.00023345,7]
[391658673,1760722238704,-1000.0,0.00023345,7]
[391658675,1760722238714,-1000.0,0.00023345,7]
[391658677,1760722238724,-1000.0,0.00023345,7]
[391658679,1760722238733,-1000.0,0.00023345,7]
[391658681,1760722238744,-1000.0,0.00023548,2]
[391658683,1760722238754,-207.20005373,0.00023606,2]
[391658685,1760722238765,-171.38,0.00023766,2]
[391658687,1760722238775,-195.98,0.00023898,2]
[391658689,1760722238784,-150.0,0.00023982,2]
[391658691,1760722238798,-461.97165921,0.00024,2]
[391658693,1760722238808,-303.7,0.00024543,2]
[391658695,1760722238823,-161.79777433,0.00024552,2]
[391658697,1760722238832,-300.0,0.00024644,2]
[391658699,1760722238841,-322.6107,0.00024645,2]
[391658701,1760722238850,-160.0,0.00024645,2]
[391658703,1760722238860,-151.0,0.00024645,2]
[391658705,1760722238869,-151.0,0.00024645,2]
[391658707,1760722238878,-8882.6885148,0.00024645,2]
[391658709,1760722238888,-151.0,0.00024645,2]
[391658711,1760722238897,-300.0,0.00024645,2]
[391658713,1760722238906,-670.58624095,0.00024645,2]
[391658715,1760722238915,-1000.0,0.00024645,2]
[391658717,1760722238924,-1000.0,0.00024645,2]
[391658719,1760722238933,-1000.0,0.00024645,2]
[391658721,1760722238942,-1000.0,0.00024645,2]
[391658723,1760722238952,-151.0,0.00024645,2]
[391658725,1760722238961,-1000.0,0.00024645,2]
[391658727,1760722238970,-1000.0,0.00024645,2]
[391658729,1760722238979,-1000.0,0.00024645,2]
[391658731,1760722238988,-239.79609754,0.00024645,2]
[391658733,1760722238998,-250.0,0.00024645,2]
[391658735,1760722239007,-1000.0,0.00024645,2]
[391658737,1760722239017,-1000.0,0.00024645,2]
[391658739,1760722239026,-250.0,0.00024645,2]
[391658741,1760722239036,-1000.0,0.00024645,2]
[391658743,1760722239045,-1000.0,0.00024645,2]
[391658745,1760722239055,-151.0,0.00024645,2]
[391658747,1760722239065,-250.0,0.00024645,2]
[391658749,1760722239075,-1000.0,0.00024645,2]
[391658751,1760722239085,-1000.0,0.00024645,2]
[391658753,1760722239094,-250.0,0.00024645,2]
[391658755,1760722239103,-151.0,0.00024645,2]
[391658757,1760722239113,-1000.0,0.00024645,2]
[391658759,1760722239122,-1000.0,0.00024645,2]
[391658761,1760722239132,-250.0,0.00024645,2]
[391658763,1760722239141,-1000.0,0.00024645,2]
[391658765,1760722239151,-151.0,0.00024645,2]
[391658767,1760722239160,-1000.0,0.00024645,2]
[391658769,1760722239170,-250.0,0.00024645,2]
[391658771,1760722239179,-1000.0,0.00024645,2]
[391658773,1760722239188,-151.0,0.00024645,2]
[391658775,1760722239198,-250.0,0.00024645,2]
[391658777,1760722239209,-1000.0,0.00024645,2]
[391658779,1760722239218,-250.0,0.00024645,2]
[391658781,1760722239227,-1000.0,0.00024645,2]
[391658783,1760722239237,-250.0,0.00024645,2]
[391658785,1760722239247,-151.0,0.00024645,2]
[391658787,1760722239261,-1000.0,0.00024645,2]
[391658789,1760722239270,-250.0,0.00024645,2]
[391658791,1760722239279,-250.0,0.00024645,2]
[391658793,1760722239290,-151.0,0.00024645,2]
[391658795,1760722239299,-1000.0,0.00024645,2]
[391658797,1760722239311,-250.0,0.00024645,2]
[391658799,1760722239320,-250.0,0.00024645,2]
[391658801,1760722239330,-151.0,0.00024645,2]
[391658803,1760722239340,-500.0,0.00024645,2]
[391658805,1760722239350,-1000.0,0.00024645,2]
[391658807,1760722239359,-250.0,0.00024645,2]
[391658809,1760722239369,-250.0,0.00024645,2]
[391658811,1760722239378,-151.0,0.00024645,2]
[391658813,1760722239387,-500.0,0.00024645,2]
[391658815,1760722239396,-257.91778498,0.00024645,2]
[391658817,1760722239406,-250.0,0.00024645,2]
[391658819,1760722239416,-1000.0,0.00024645,2]
[391658821,1760722239425,-250.0,0.00024645,2]
[391658823,1760722239435,-151.0,0.00024645,2]
[391658826,1760722239444,-500.0,0.00024645,2]
[391658829,1760722239453,-250.0,0.00024645,2]
[391658831,1760722239463,-1000.0,0.00024645,2]
[391658833,1760722239472,-250.0,0.00024645,2]
[391658835,1760722239482,-151.0,0.00024645,2]
[391658837,1760722239491,-500.0,0.00024645,2]
[391658839,1760722239501,-1000.0,0.00024645,2]
[391658841,1760722239521,-250.0,0.00024645,2]
[391658843,1760722239532,-151.0,0.00024645,2]
[391658845,1760722239542,-500.0,0.00024645,2]
[391658847,1760722239551,-250.0,0.00024645,2]
[391658850,1760722239566,-151.0,0.00024645,2]
[391658852,1760722239577,-500.0,0.00024645,2]
[391658854,1760722239587,-250.0,0.00024645,2]
[391658856,1760722239597,-151.0,0.00024645,2]
[391658858,1760722239606,-500.0,0.00024645,2]
[391658860,1760722239616,-250.0,0.00024645,2]
[391658862,1760722239626,-500.0,0.00024645,2]
[391658864,1760722239635,-1000.0,0.00024645,2]
[391658866,1760722239645,-250.0,0.00024645,2]
[391658868,1760722239655,-500.0,0.00024645,2]
[391658870,1760722239665,-250.0,0.00024645,2]
[391658872,1760722239675,-500.0,0.00024645,2]
[391658874,1760722239685,-1000.0,0.00024645,2]
[391658876,1760722239694,-250.0,0.00024645,2]
[391658878,1760722239705,-500.0,0.00024645,2]
[391658880,1760722239715,-1000.0,0.00024645,2]
[391658882,1760722239725,-500.0,0.00024645,2]
[391658884,1760722239734,-500.0,0.00024645,2]
[391658887,1760722239745,-1000.0,0.00024645,2]
[391658889,1760722239759,-194.72792766,0.00024645,2]
[391658891,1760722239769,-1000.0,0.00024645,2]
[391658893,1760722239779,-1000.0,0.00024645,2]
[391658895,1760722239789,-1000.0,0.00024645,2]
[391658898,1760722239799,-1000.0,0.00024645,2]
[391658900,1760722239810,-1000.0,0.00024645,2]
[391658902,1760722239819,-1000.0,0.00024645,2]
[391658904,1760722239829,-1000.0,0.00024645,2]
[391658906,1760722239839,-1000.0,0.00024645,2]
[391658908,1760722239849,-250.0,0.00024645,2]
[391658910,1760722239859,-1000.0,0.00024645,2]
[391658912,1760722239868,-250.0,0.00024645,2]
[391658914,1760722239879,-250.0,0.00024645,2]
[391658916,1760722239888,-3000.0,0.00024645,2]
[391658918,1760722239898,-250.0,0.00024645,2]
[391658920,1760722239907,-3000.0,0.00024645,2]
[391658922,1760722239917,-250.0,0.00024645,2]
[391658925,1760722239927,-3000.0,0.00024645,2]
[391658927,1760722239937,-250.0,0.00024645,2]
[391658929,1760722239950,-644.79446246,0.00024645,2]
[391658931,1760722239962,-3000.0,0.00024645,2]
[391658933,1760722239972,-250.0,0.00024645,2]
[391658935,1760722239982,-3000.0,0.00024645,2]
[391658937,1760722239992,-250.0,0.00024645,2]
[391658939,1760722240002,-3000.0,0.00024645,2]
[391658941,1760722240013,-250.0,0.00024645,2]
[391658943,1760722240023,-3000.0,0.00024645,2]
[391658946,1760722240033,-250.0,0.00024645,2]
[391658948,1760722240043,-3000.0,0.00024645,2]
[391658950,1760722240053,-250.0,0.00024645,2]
[391658952,1760722240063,-3000.0,0.00024645,2]
[391658954,1760722240073,-250.0,0.00024645,2]
[391658956,1760722240083,-3000.0,0.00024645,2]
[391658958,1760722240092,-250.0,0.00024645,2]
[391658960,1760722240102,-2065.7387676,0.00024645,2]
[391658962,1760722240112,-250.0,0.00024645,2]
[391658965,1760722240126,-337.04050925,0.00024645,2]
[391658967,1760722240136,-4184.05,0.00024648,2]
[391658969,1760722240148,-1466.34,0.00024648,2]
[391658971,1760722240158,-500.0,0.00024657,2]
[391658973,1760722240168,-500.0,0.00024657,2]
[391658975,1760722240178,-500.0,0.00024657,2]
[391658978,1760722240188,-500.0,0.00024657,2]
[391658980,1760722240198,-524.48358087,0.00024657,2]
[391658982,1760722240207,-500.0,0.00024657,2]
[391658984,1760722240217,-500.0,0.00024657,2]
[391658986,1760722240227,-501.52904935,0.00024657,2]
[391658988,1760722240236,-551.34246712,0.00024657,2]
[391658990,1760722240246,-500.0,0.00024657,2]
[391658992,1760722240259,-500.0,0.00024657,2]
[391658993,1760722240270,-500.0,0.00024657,2]
[391658994,1760722240280,-500.0,0.00024657,2]
[391658995,1760722240290,-500.0,0.00024657,2]
[391658996,1760722240303,-500.0,0.00024657,2]
[391658997,1760722240314,-500.0,0.00024657,2]
[391658998,1760722240329,-500.0,0.00024657,2]
[391659000,1760722240339,-591.41705692,0.00024657,2]
[391659002,1760722240349,-500.0,0.00024657,2]
[391659004,1760722240360,-500.0,0.00024657,2]
[391659006,1760722240371,-490.71870614,0.00024657,2]
[391659008,1760722240381,-500.0,0.00024657,2]
[391659010,1760722240391,-500.0,0.00024657,2]
[391659012,1760722240402,-500.0,0.00024657,2]
[391659014,1760722240412,-500.0,0.00024657,2]
[391659016,1760722240423,-500.0,0.00024657,2]
[391659019,1760722240433,-500.0,0.00024657,2]
[391659021,1760722240444,-500.0,0.00024657,2]
[391659023,1760722240454,-500.0,0.00024657,2]
[391659025,1760722240464,-3.14608184,0.00024657,2]
[391659029,1760722240491,-359.49483987,0.00024657,2]
[391659031,1760722240503,-137.35907829,0.00024657,2]
[391659034,1760722240514,-500.0,0.00024657,2]
[391659036,1760722240529,-282.02092171,0.00024657,2]
[391659038,1760722240542,-217.97907829,0.00024657,2]
[391659040,1760722240552,-500.0,0.00024657,2]
[391659043,1760722240563,-500.0,0.00024657,2]
[391659045,1760722240574,-500.0,0.00024657,2]
[391659047,1760722240584,-500.0,0.00024657,2]
[391659049,1760722240597,-500.0,0.00024657,2]
[391659051,1760722240607,-500.0,0.00024657,2]
[391659053,1760722240617,-500.0,0.00024657,2]
[391659055,1760722240627,-500.0,0.00024657,2]
[391659057,1760722240637,-500.0,0.00024657,2]
[391659059,1760722240647,-500.0,0.00024657,2]
[391659061,1760722240659,-500.0,0.00024657,2]
[391659064,1760722240670,-500.0,0.00024657,2]
[391659066,1760722240680,-500.0,0.00024657,2]
[391659068,1760722240690,-227.06481089,0.00024657,2]
[391659072,1760722240722,-272.93518911,0.00024657,2]
[391659074,1760722240732,-500.0,0.00024657,2]
[391659076,1760722240742,-500.0,0.00024657,2]
[391659078,1760722240751,-380.92369369,0.00024657,2]
[391659080,1760722240762,-500.0,0.00024657,2]
[391659082,1760722240772,-598.90177415,0.00024657,2]
[391659084,1760722240783,-71.62173134,0.00024657,2]
[391659116,1760722241087,-501.52606715,0.000147,2]
[391659120,1760722241123,-985.08068415,0.000147,2]
[391659123,1760722241134,-696.56,0.00014726,2]
[391659125,1760722241145,-500.0,0.00014999,2]
[391659127,1760722241155,-500.0,0.00014999,2]
[391659129,1760722241166,-150.16215363,0.00014999,2]
[391659131,1760722241176,-696.56,0.00015217,2]
[391659133,1760722241187,-696.56,0.00015708,2]
[391659135,1760722241197,-696.56,0.00016199,2]
[391659137,1760722241207,-637.34393449,0.00016438,2]
[391659140,1760722241218,-696.56,0.0001669,2]
[391659142,1760722241228,-696.56,0.00017181,2]
[391659144,1760722241238,-696.56,0.00017672,2]
[391659146,1760722241249,-696.56,0.00018162,2]
[391659148,1760722241264,-696.56,0.00018653,2]
[391659150,1760722241274,-428.37826866,0.00024657,2]
[391659152,1760722241285,-583.81871619,0.00024657,2]
[391659154,1760722241298,-500.0,0.00024657,2]
[391659157,1760722241308,-531.34,0.00024657,2]
[391659159,1760722241320,-500.0,0.00024657,2]
[391659161,1760722241331,-500.0,0.00024657,2]
[391659163,1760722241343,-500.0,0.00024657,2]
[391659165,1760722241353,-278.1950987,0.00024657,2]
[391659167,1760722241363,-500.0,0.00024657,2]
[391659170,1760722241373,-500.0,0.00024657,2]
[391659171,1760722241384,-500.0,0.00024657,2]
[391659174,1760722241395,-500.0,0.00024657,2]
[391659176,1760722241406,-500.0,0.00024657,2]
[391659178,1760722241416,-500.0,0.00024657,2]
[391659180,1760722241426,-500.0,0.00024657,2]
[391659182,1760722241437,-500.0,0.00024657,2]
[391659184,1760722241448,-500.0,0.00024657,2]
[391659186,1760722241458,-500.0,0.00024657,2]
[391659188,1760722241468,-500.0,0.00024657,2]
[391659191,1760722241479,-500.0,0.00024657,2]
[391659193,1760722241489,-500.0,0.00024657,2]
[391659195,1760722241499,-500.0,0.00024657,2]
[391659197,1760722241509,-500.0,0.00024657,2]
[391659199,1760722241520,-500.0,0.00024657,2]
[391659201,1760722241530,-500.0,0.00024657,2]
[391659203,1760722241540,-500.0,0.00024657,2]
[391659205,1760722241551,-500.0,0.00024657,2]
[391659207,1760722241561,-500.0,0.00024657,2]
[391659209,1760722241572,-541.66,0.00024657,2]
[391659211,1760722241583,-500.0,0.00024657,2]
[391659214,1760722241594,-500.0,0.00024657,2]
[391659216,1760722241604,-500.0,0.00024657,2]
[391659217,1760722241614,-500.0,0.00024657,2]
[391659219,1760722241623,-500.0,0.00024657,2]
[391659221,1760722241635,-500.0,0.00024657,2]
[391659224,1760722241646,-500.0,0.00024657,2]
[391659226,1760722241660,-500.0,0.00024657,2]
[391659228,1760722241671,-511.91079126,0.00024657,2]
[391659230,1760722241682,-500.0,0.00024657,2]
[391659233,1760722241693,-500.0,0.00024657,2]
[391659235,1760722241704,-500.0,0.00024657,2]
[391659237,1760722241714,-500.0,0.00024657,2]
[391659239,1760722241724,-500.0,0.00024657,2]
[391659241,1760722241735,-500.0,0.00024657,2]
[391659243,1760722241746,-324.53229901,0.00024657,2]
[391659245,1760722241756,-500.0,0.00024657,2]
[391659247,1760722241768,-500.0,0.00024657,2]
[391659250,1760722241779,-500.0,0.00024657,2]
[391659252,1760722241790,-500.0,0.00024657,2]
[391659254,1760722241800,-500.0,0.00024657,2]
[391659256,1760722241811,-500.0,0.00024657,2]
[391659258,1760722241822,-500.0,0.00024657,2]
[391659260,1760722241833,-500.0,0.00024657,2]
[391659261,1760722241845,-500.0,0.00024657,2]
[391659293,1760722242194,-500.0,0.00024657,2]